[Event "Deutschland Grand Prix 2022"]
[Site "Dortmund"]
[Date "2022.07.20"]
[Round "4.3"]
[White "Eljanov, Pavel"]
[Black "Deac, Bogdan-Daniel"]
[Result "1/2-1/2"]
[ECO "A14"]
[WhiteElo "2681"]
[BlackElo "2692"]
[Annotator "TA"]
[PlyCount "166"]
[EventDate "2022.07.17"]
[EventType "tourn"]
[EventCountry "GER"]
[SourceTitle "playchess.com"]
[Source "ChessBase"]
[SourceQuality "1"]
[TimeControl "40/5400+30:1800+30"]

{[%evp 16,166,20,0,0,0,0,0,0,0,0,0,0,0,6,0,2,0,13,-14,3,17,41,16,18,18,18,19,15,14,13,17,15,13,37,32,48,0,0,0,4,0,9,0,0,0,4,6,0,0,0,0,0,0,12,16,25,11,16,16,45,45,78,75,95,66,72,76,87,84,82,81,85,69,95,74,81,62,89,62,57,36,90,25,45,25,25,18,18,18,18,25,39,29,46,50,47,25,25,25,100,12,12,0,0,0,5,12,12,12,12,12,12,0,12,12,12,9,18,18,18,18,18,12,13,13,13,13,13,4,4,0,0,0,0,0,0,0,0,0,0,0,0,0,0,0,0,0,0,0,0,0,0]} 1. Nf3 {[%emt 0:00:04]} d5 {[%emt 0:00:08]} 2. e3 {[%emt 0:00:08]} c5 {[%emt 0:01:20]} 3. b3 {[%emt 0:00:27]} Nf6 {[%emt 0:05:30]} 4. Bb2 {[%emt 0:02:11]} e6 {[%emt 0:00:10]} 5. g3 {[%emt 0:08:38]} Be7 {[%emt 0:09:46]} 6. Bg2 {[%emt 0:00:14]} O-O {[%emt 0:00:58]} 7. O-O {[%emt 0:00:30]} b6 {[%emt 0:02:03]} 8. c4 {[%emt 0:01:43]} Bb7 {[%emt 0:00:19][%cal Bc8b7,Bb7d5,Bd5c6][%mdl 32]} 9. Nc3 {[%emt 0:02:49]} Qc8 {[%emt 0:02:12] A14: English Opening: 1...e6 with b3 by White.} 10. cxd5 {[%emt 0:09:05]} Nxd5 {[%emt 0:00:17]} 11. Nxd5 {[%emt 0:00:10]} Bxd5 {[%emt 0:00:33]} 12. Qe2 {[%emt 0:05:43]} Rd8 {[%emt 0:05:16]} 13. Rfd1 {[%emt 0:08:05]} Qb7 {[%emt 0:03:52]} 14. d3 {[%emt 0:04:38]} Nd7 {[%emt 0:00:59]} 15. Rac1 {[%emt 0:04:12]} a5 {[%emt 0:06:08]} 16. e4 {[%emt 0:04:40]} Bc6 {[%emt 0:00:11] [#]} 17. Re1 $146 {[%emt 0:02:05]} ({Predecessor:} 17. Ne5 Nxe5 18. Bxe5 Bd6 19. Bc3 e5 20. Qb2 Qe7 21. a3 Bd7 22. Rb1 f6 23. b4 axb4 24. axb4 Be6 25. bxc5 bxc5 26. Ra1 Qc7 27. Rdb1 Rxa1 28. Rxa1 {½-½ (28) Buchal,S (2299)-Wachinger,N (2360) Hamburg 2018}) 17... Rac8 {[%emt 0:21:35]} 18. d4 {[%emt 0:04:46][%cal Od4d5]} Bf8 {[%emt 0:02:22]} 19. Rcd1 {[%emt 0:28:06][%cal Od4d5]} (19. d5 {is more complex.} exd5 20. exd5 Bxd5 21. Ng5) 19... Nf6 {[%emt 0:12:00] Inhibits d5.} 20. Ne5 {[%emt 0:00:20]} cxd4 {[%emt 0:04:10]} 21. Nxc6 {[%emt 0:00:07]} (21. Bxd4 {looks sharper.} Bb4 22. Nxc6 Qxc6 23. Rf1) 21... Qxc6 {[%emt 0:01:51]} 22. Rxd4 {[%emt 0:01:16]} Rxd4 {[%emt 0:01:43]} 23. Bxd4 {[%emt 0:00:02]} a4 {[%emt 0:00:15]} 24. Rd1 {[%emt 0:01:53]} axb3 {[%emt 0:04:08]} 25. axb3 {[%emt 0:00:06]} Rd8 {[%emt 0:00:39]} 26. Be3 {[%emt 0:01:06]} (26. Bf3 $14) 26... Rxd1+ $11 {[%emt 0:02:43]} 27. Qxd1 {[%emt 0:00:02]} Nd7 {[%emt 0:01:09]} 28. Qc1 {[%emt 0:06:48]} Qb5 {[%emt 0:07:28]} 29. Qc8 {[%emt 0:00:53]} Nc5 {[%emt 0:02:11]} 30. Bg5 {[%emt 0:01:38] [#] Hoping for Be7.} f6 {[%emt 0:00:31]} 31. Be3 {[%emt 0:01:14]} Qxb3 {[%emt 0:00:44]} 32. Bf1 {[%emt 0:02:12]} Kf7 {[%emt 0:01:38]} ({Much less strong is} 32... Nxe4 33. Bc4 Qd1+ 34. Kg2 $16) 33. Qc7+ {[%emt 0:00:19]} Be7 {[%emt 0:00:54]} 34. e5 {[%emt 0:00:07]} Qb1 {[%emt 0:00:51]} 35. exf6 {[%emt 0:00:24]} gxf6 {[%emt 0:00:08]} 36. h4 {[%emt 0:00:19]} Ne4 {[%emt 0:01:14]} 37. Kg2 {[%emt 0:00:52]} Nd6 {[%emt 0:00:29]} 38. Be2 {[%emt 0:00:44] [#] Threatens to win with Bh5+.} Qf5 {[%emt 0:00:23] Prevents Bh5+.} 39. Bxb6 {[%emt 0:00:44]} Ne8 {[%emt 0:00:35]} 40. Qa7 {[%emt 0:00:32] Active counter play!} Ng7 {[%emt 0:00:34]} 41. Bf3 {[%emt 0:05:36]} Qb5 {[%emt 0:01:19]} 42. Be3 {[%emt 0:10:44]} Nf5 {[%emt 0:08:11]} 43. Bf4 {[%emt 0:00:05]} Qd3 {[%emt 0:02:53]} 44. Qb7 {[%emt 0:02:09]} Qd8 {[%emt 0:03:28]} 45. Qe4 {[%emt 0:04:01]} Qd7 {[%emt 0:01:17]} 46. Bg4 {[%emt 0:04:10]} Bf8 {[%emt 0:06:51]} 47. h5 {[%emt 0:00:57]} Kg8 {[%emt 0:02:24]} 48. Kh2 {[%emt 0:03:31]} Ng7 {[%emt 0:05:12]} (48... Nd4 $14) 49. Bf3 {[%emt 0:00:44]} (49. Be2 $16 {Strongly threatening h6.} Bd6 50. Qd4) 49... f5 {[%emt 0:01:01]} 50. Qe5 {[%emt 0:02:36]} Ne8 {[%emt 0:01:06]} 51. Be2 {[%emt 0:00:37] And now Bc4 would win.} Bd6 {[%emt 0:01:14]} 52. Qd4 {[%emt 0:00:05]} Qe7 {[%emt 0:00:19]} 53. Be3 {[%emt 0:00:56]} Qf6 {[%emt 0:00:59]} 54. Qa4 {[%emt 0:00:30]} Qf7 {[%emt 0:00:20]} 55. Kg2 {[%emt 0:00:34]} Nf6 {[%emt 0:00:26]} 56. Qa8+ {[%emt 0:00:24]} Qe8 {[%emt 0:00:26]} 57. Qa6 {[%emt 0:00:17]} Bf8 {[%emt 0:01:04]} (57... Qd8 $11) 58. Bc4 {[%emt 0:00:12]} (58. Bb5 $16 Qf7 59. Qc8) 58... Kf7 {[%emt 0:00:14] The position is equal.} 59. Qb7+ {[%emt 0:00:20]} Qd7 {[%emt 0:00:24]} 60. Qf3 {[%emt 0:00:18]} Nd5 {[%emt 0:00:27]} 61. Bd2 {[%emt 0:01:21] White wants to play g4. This bishop pair is nice.} Qc6 {[%emt 0:00:05]} 62. Bb3 {[%emt 0:00:45] aiming for g4.} Ne7 {[%emt 0:00:18]} 63. Qxc6 {[%emt 0:00:10]} Nxc6 {[%emt 0:00:02][%mdl 4096] Endgame KBB-KBN} 64. Bc3 {[%emt 0:00:19]} Bd6 {[%emt 0:00:10]} 65. f3 {[%emt 0:00:18]} Ne5 {[%emt 0:00:20]} 66. Bd2 {[%emt 0:00:51]} Nd3 {[%emt 0:00:28]} 67. Bc4 {[%emt 0:00:16]} Bb4 {[%emt 0:00:30]} 68. Bg5 {[%emt 0:00:33]} Ne5 {[%emt 0:00:10]} 69. Be2 {[%emt 0:00:05]} Nd7 {[%emt 0:01:21]} 70. g4 {[%emt 0:00:11][%cal Bg3g4,Bg4f5][%mdl 32]} Nf6 {[%emt 0:00:04]} 71. Bc1 {[%emt 0:00:14]} Bd6 {[%emt 0:00:39]} 72. Bd1 {[%emt 0:00:40]} Nd5 {[%emt 0:01:27]} 73. gxf5 {[%emt 0:00:46]} Bf4 {[%emt 0:00:22]} 74. Bxf4 {[%emt 0:01:07]} Nxf4+ {[%emt 0:00:02] KB-KN} 75. Kg3 {[%emt 0:00:14]} Nxh5+ {[%emt 0:00:03]} 76. Kh4 {[%emt 0:00:10]} Ng7 {[%emt 0:01:11]} 77. fxe6+ {[%emt 0:00:04]} Nxe6 {[%emt 0:00:07]} 78. Bb3 {[%emt 0:00:06]} Kf6 {[%emt 0:00:04]} 79. Bxe6 {[%emt 0:00:03]} Kxe6 {[%emt 0:00:05]} 80. Kg5 {[%emt 0:00:02]} Kf7 {[%emt 0:00:09]} 81. Kh6 {[%emt 0:00:07]} Kf6 {[%emt 0:00:05]} 82. f4 {[%emt 0:00:04]} Kf5 {[%emt 0:00:05]} 83. Kxh7 {[%emt 0:00:07]} Kxf4 {[%emt 0:00:03] Weighted Error Value: White=0.12 (very precise) /Black=0.10 (very precise)} 1/2-1/2

[Event "Deutschland Grand Prix 2022"]
[Site "Dortmund"]
[Date "2022.07.22"]
[Round "5.1"]
[White "McShane, Luke J"]
[Black "Eljanov, Pavel"]
[Result "1/2-1/2"]
[ECO "C67"]
[WhiteElo "2649"]
[BlackElo "2681"]
[Annotator "TA"]
[PlyCount "119"]
[EventDate "2022.07.17"]
[EventType "tourn"]
[EventCountry "GER"]
[SourceTitle "playchess.com"]
[Source "ChessBase"]
[SourceQuality "1"]
[TimeControl "40/5400+30:1800+30"]

{[%evp 16,119,24,15,3,6,19,18,9,0,8,8,9,12,19,13,15,16,21,12,12,15,14,14,14,12,12,0,0,0,0,0,0,0,0,-3,0,0,0,0,0,0,0,0,0,0,0,0,0,0,0,0,0,0,0,0,0,0,0,0,0,0,0,0,0,0,0,0,0,0,0,0,0,0,0,0,0,0,0,0,0,0,0,0,0,0,0,0,0,0,0,0,0,0,0,0,0,0,0,0,0,0,0,0,0,0]} 1. e4 {[%emt 0:00:06]} e5 {[%emt 0:00:05]} 2. Nf3 {[%emt 0:00:07]} Nc6 {[%emt 0:00:03]} 3. Bb5 {[%emt 0:00:07]} Nf6 {[%emt 0:00:12]} 4. O-O {[%emt 0:00:11]} Nxe4 {[%emt 0:00:03]} 5. d4 {[%emt 0:00:07]} Nd6 {[%emt 0:00:05]} 6. Bxc6 {[%emt 0:00:04]} dxc6 {[%emt 0:00:03]} 7. dxe5 {[%emt 0:00:06]} Nf5 {[%emt 0:00:03]} 8. Qxd8+ {[%emt 0:00:06]} Kxd8 {[%emt 0:00:04]} 9. h3 {[%emt 0:00:06]} Be7 {[%emt 0:00:40] The position is equal. C67: Ruy Lopez: Berlin Defence: 4 0-0 Nxe4.} 10. Nc3 {[%emt 0:00:14]} Nh4 {[%emt 0:01:07] ...Nxf3+ is the strong threat.} 11. Nxh4 {[%emt 0:00:05]} Bxh4 {[%emt 0:00:04]} 12. Re1 {[%emt 0:00:08]} h5 {[%emt 0:04:42]} 13. Ne2 {[%emt 0:02:56]} Be7 {[%emt 0:05:30]} 14. Bd2 {[%emt 0:01:29] [#]} Bd7 $146 {[%emt 0:11:30]} ({Predecessor:} 14... Ke8 15. Rad1 a6 16. e6 Bxe6 17. Nd4 Rd8 18. Nxe6 fxe6 19. Rxe6 Rd6 20. Ree1 Kf7 {½-½ (52) Vachier Lagrave,M (2784)-So,W (2770) chess24.com INT 2020}) 15. Rad1 {[%emt 0:14:22]} Ke8 {[%emt 0:06:52]} 16. e6 {[%emt 0:12:50]} Bxe6 {[%emt 0:08:28]} 17. Nd4 {[%emt 0:03:08]} Bf6 {[%emt 0:04:43]} 18. Nxe6 {[%emt 0:00:49]} fxe6 {[%emt 0:00:03]} 19. Rxe6+ {[%emt 0:01:38]} Kf7 {[%emt 0:00:04]} 20. Rde1 {[%emt 0:04:11]} Rhd8 {[%emt 0:06:58]} 21. Bc3 {[%emt 0:02:50]} Bxc3 {[%emt 0:01:18]} 22. Re7+ {[%emt 0:04:50]} Kf8 {[%emt 0:01:27]} 23. bxc3 {[%emt 0:00:06]} Rd1 {[%emt 0:01:32]} 24. Rxd1 {[%emt 0:01:29]} Kxe7 $11 {[%emt 0:00:04][%mdl 4096] Endgame KR-KR} 25. g4 {[%emt 0:00:26]} a5 {[%emt 0:04:43]} 26. f4 {[%emt 0:05:49]} a4 {[%emt 0:00:32]} 27. Kf2 {[%emt 0:00:49]} Ra5 {[%emt 0:00:31]} 28. Rd4 {[%emt 0:07:31]} c5 {[%emt 0:28:01]} 29. Re4+ {[%emt 0:02:46]} Kf7 {[%emt 0:01:15]} 30. gxh5 {[%emt 0:25:50]} a3 {[%emt 0:06:14]} 31. Kf3 {[%emt 0:00:45]} Rb5 {[%emt 0:03:34]} 32. Ra4 {[%emt 0:00:05]} Rb2 {[%emt 0:00:03][%csl LRa2,LRc2]} 33. Rxa3 {[%emt 0:00:08]} Rxc2 {[%emt 0:00:03]} 34. Ra7 {[%emt 0:02:28]} Rxc3+ {[%emt 0:00:45]} 35. Kg4 {[%emt 0:00:07]} b5 {[%emt 0:00:26]} 36. Rxc7+ {[%emt 0:00:47]} Kg8 {[%emt 0:00:15]} 37. h4 {[%emt 0:05:09]} c4 {[%emt 0:00:08]} 38. Rb7 {[%emt 0:01:43]} Ra3 {[%emt 0:00:17]} 39. Rxb5 {[%emt 0:00:03]} Rxa2 {[%emt 0:00:04]} 40. Rc5 {[%emt 0:00:22]} Rc2 {[%emt 0:00:13]} 41. h6 {[%emt 0:09:37]} gxh6 {[%emt 0:02:49]} 42. Kf5 {[%emt 0:00:08]} c3 {[%emt 0:02:23]} 43. h5 {[%emt 0:03:49]} Rc1 {[%emt 0:02:30]} 44. Kf6 {[%emt 0:03:39]} c2 {[%emt 0:00:28]} 45. Rc8+ {[%emt 0:04:37]} Kh7 {[%emt 0:00:04]} 46. Rc7+ {[%emt 0:00:05]} Kg8 {[%emt 0:00:05]} 47. Rc8+ {[%emt 0:00:51]} Kh7 {[%emt 0:00:06]} 48. f5 {[%emt 0:00:04]} Ra1 {[%emt 0:00:12]} 49. Rc7+ {[%emt 0:00:54]} Kg8 {[%emt 0:00:04]} 50. Rc8+ {[%emt 0:00:03]} Kh7 {[%emt 0:00:03]} 51. Rxc2 {[%emt 0:00:06]} Ra6+ $1 {[%emt 0:00:03]} 52. Ke5 {[%emt 0:02:28]} Ra5+ {[%emt 0:00:04]} 53. Ke4 {[%emt 0:01:10]} Ra4+ {[%emt 0:00:05]} 54. Kd5 {[%emt 0:00:06]} Kg7 {[%emt 0:00:41]} 55. Rc6 {[%emt 0:00:46]} Ra1 {[%emt 0:01:10]} 56. Rg6+ {[%emt 0:03:54]} Kf7 {[%emt 0:00:11]} 57. Rxh6 {[%emt 0:00:31]} Rd1+ {[%emt 0:00:05]} 58. Ke5 {[%emt 0:00:09] [#] Hoping for Rh7+.} Re1+ {[%emt 0:00:04]} 59. Kd5 {[%emt 0:01:18]} Rd1+ {[%emt 0:00:05]} 60. Ke5 {[%emt 0:00:05] An uneventful encounter.  Weighted Error Value: White=0.01 (flawless) /Black=0.00 (flawless)} 1/2-1/2

[Event "Deutschland Grand Prix 2022"]
[Site "Dortmund"]
[Date "2022.07.22"]
[Round "5.2"]
[White "Bluebaum, Matthias"]
[Black "L'Ami, Erwin"]
[Result "1/2-1/2"]
[ECO "D33"]
[WhiteElo "2673"]
[BlackElo "2634"]
[Annotator "TA"]
[PlyCount "66"]
[EventDate "2022.07.17"]
[EventType "tourn"]
[EventCountry "GER"]
[SourceTitle "playchess.com"]
[Source "ChessBase"]
[SourceQuality "1"]
[TimeControl "40/5400+30:1800+30"]

{[%evp 11,66,40,30,5,19,6,12,0,2,12,25,12,22,-6,-17,0,0,-15,-10,-18,0,0,0,-11,0,0,0,0,0,-33,-30,-79,-15,-18,-12,-17,0,0,0,-10,0,0,0,0,0,0,0,0,0,0,0,0,0,0,6,0,0]} 1. d4 {[%emt 0:00:03]} d5 {[%emt 0:00:11]} 2. c4 {[%emt 0:00:26]} e6 {[%emt 0:00:11]} 3. Nc3 {[%emt 0:00:10]} c5 {[%emt 0:00:14]} 4. cxd5 {[%emt 0:00:38]} exd5 {[%emt 0:01:13]} 5. Nf3 {[%emt 0:00:17]} Nc6 {[%emt 0:00:09]} 6. g3 {[%emt 0:00:54]} Nf6 {[%emt 0:00:21]} 7. a3 {[%emt 0:00:24] D33: Tarrasch Defence: 6 g3 sidelines.} c4 {[%emt 0:11:37]} 8. Bg2 {[%emt 0:02:36]} Be7 {[%emt 0:00:34]} 9. Bg5 {[%emt 0:02:15]} O-O {[%emt 0:02:13]} 10. e3 {[%emt 0:07:07] [#]} Ne8 $146 {[%emt 0:09:35]} (10... Bg4 {feels hotter.} 11. h3 Be6 12. Ng1 Ne4) ({Predecessor:} 10... Be6 11. O-O h6 12. Bxf6 Bxf6 13. Kh1 Qd7 14. Ng1 b5 15. Nge2 Rab8 16. Nf4 Ne7 {½-½ (118) Warmerdam,M (2613)-Dardha,D (2555) Maastricht 2022}) 11. Bxe7 {[%emt 0:05:52]} Nxe7 {[%emt 0:00:08]} 12. Ng1 {[%emt 0:03:44][%cal Bf3g1,Bg1e2,Be2f4][%mdl 32]} b5 {[%emt 0:06:07]} 13. Nge2 {[%emt 0:02:26]} a6 {[%emt 0:04:34]} 14. b3 {[%emt 0:05:42]} Rb8 {[%emt 0:01:41]} 15. Nf4 {[%emt 0:06:29][%cal Rf4d5]} Bb7 {[%emt 0:03:19]} 16. O-O {[%emt 0:03:52]} Nf6 {[%emt 0:03:10]} 17. bxc4 {[%emt 0:09:12]} dxc4 {[%emt 0:01:37]} 18. e4 {[%emt 0:01:29]} Ng6 {[%emt 0:06:52]} 19. Nxg6 {[%emt 0:02:24]} hxg6 {[%emt 0:01:31]} 20. d5 {[%emt 0:00:03]} Qb6 {[%emt 0:01:57] Inhibits Qd4.} 21. Qb1 {[%emt 0:07:37]} (21. Kh1 $11) 21... Rfe8 {[%emt 0:06:09]} ({Black should play} 21... Bc8 $17) 22. Qb4 $1 $11 {[%emt 0:04:00] The position is equal.} Bc8 {[%emt 0:05:04] White should prevent ...Bd7.} 23. a4 {[%emt 0:00:58]} Bd7 {[%emt 0:04:06] [#] ...a5 is the strong threat.} 24. axb5 {[%emt 0:00:14]} axb5 {[%emt 0:00:06]} 25. h3 {[%emt 0:01:42] Inhibits Ng4.} g5 {[%emt 0:01:03][%cal Bg6g5,Bg5g4][%mdl 32]} 26. Ra2 {[%emt 0:04:35]} g4 {[%emt 0:03:31]} 27. h4 {[%emt 0:00:24]} Qd4 {[%emt 0:01:32]} 28. Rd1 {[%emt 0:02:01]} Qe5 {[%emt 0:01:06]} 29. Ra7 {[%emt 0:00:09]} Rec8 {[%emt 0:02:54]} 30. Rda1 {[%emt 0:03:57]} Qd4 {[%emt 0:02:37]} 31. Ne2 {[%emt 0:02:46]} Qe5 {[%emt 0:00:57] Hoping for ...c3.} 32. Nc3 {[%emt 0:00:10]} Qd4 {[%emt 0:01:40]} 33. Ne2 {[%emt 0:03:09]} Qe5 {[%emt 0:00:34] Weighted Error Value: White=0.07 (flawless) /Black=0.07 (flawless)} 1/2-1/2

[Event "Deutschland Grand Prix 2022"]
[Site "Dortmund"]
[Date "2022.07.22"]
[Round "5.3"]
[White "Navara, David"]
[Black "Svane, Rasmus"]
[Result "1/2-1/2"]
[ECO "C54"]
[WhiteElo "2688"]
[BlackElo "2649"]
[Annotator "TA"]
[PlyCount "100"]
[EventDate "2022.07.17"]
[EventType "tourn"]
[EventCountry "GER"]
[SourceTitle "playchess.com"]
[Source "ChessBase"]
[SourceQuality "1"]
[TimeControl "40/5400+30:1800+30"]

{[%evp 10,100,15,11,30,14,29,16,23,10,12,8,8,0,6,-16,0,-8,0,-15,-9,-18,-14,-17,-5,-43,-29,-53,-64,-49,-45,-63,-16,-96,-100,-95,-108,-91,-88,-101,-98,-91,-78,-88,-80,-77,-51,-56,-56,-56,-56,-95,-95,-107,-103,-107,-104,-103,-114,-210,-217,-199,-152,-163,0,-145,-130,-99,0,0,0,0,0,0,0,0,0,0,0,0,0,0,0,0,0,0,0,0,0,0,0,0,0]} 1. e4 {[%emt 0:00:02]} e5 {[%emt 0:00:08]} 2. Nf3 {[%emt 0:00:04]} Nc6 {[%emt 0:00:07]} 3. Bc4 {[%emt 0:00:04]} Bc5 {[%emt 0:00:36]} 4. d3 {[%emt 0:00:22]} Nf6 {[%emt 0:00:14]} 5. O-O {[%emt 0:00:05]} d6 {[%emt 0:00:48]} 6. c3 {[%emt 0:00:14]} a5 {[%emt 0:02:24] C54: Giuoco Piano: 4 c3 Nf6, main lines with 5 d4 and 5 d3.} 7. Re1 {[%emt 0:00:33]} Ba7 {[%emt 0:02:10]} 8. Nbd2 {[%emt 0:02:22][%cal Bb1d2,Bd2f1,Bf1g3][%mdl 32]} O-O {[%emt 0:06:23]} 9. Nf1 {[%emt 0:05:19]} Be6 {[%emt 0:07:03]} 10. Bb5 {[%emt 0:00:48]} Ne7 {[%emt 0:00:35]} 11. Ng3 {[%emt 0:12:41]} Ng6 {[%emt 0:05:03]} 12. h3 {[%emt 0:01:07]} c6 {[%emt 0:07:39]} 13. Ba4 {[%emt 0:00:14]} d5 {[%emt 0:02:05]} 14. exd5 {[%emt 0:04:48]} Nxd5 {[%emt 0:01:33]} ({But not} 14... Qxd5 15. Bb3 Qd6 16. Bxe6 fxe6 17. Bg5 $14) 15. d4 {[%emt 0:00:21]} exd4 {[%emt 0:00:57]} 16. Nxd4 {[%emt 0:00:10]} Qc7 {[%emt 0:10:13]} 17. Ne4 {[%emt 0:13:30] [#]} Rfe8 $146 {[%emt 0:14:52]} ({Predecessor:} 17... Rae8 18. Bc2 Ndf4 19. Nxe6 Rxe6 20. Be3 Bxe3 21. Rxe3 Rfe8 22. Qf1 Nh4 23. Ng5 Rxe3 24. fxe3 Nfxg2 {0-1 (35) Neiksans,A (2560)-Hovhannisyan,R (2669) Riga 2021}) 18. Bd2 {[%emt 0:05:27]} Bxd4 {[%emt 0:11:06]} 19. cxd4 {[%emt 0:00:09]} Ndf4 {[%emt 0:04:13] White must now prevent ...Bd5. Pair of Knights!} 20. Bc2 {[%emt 0:04:00]} Bd5 {[%emt 0:01:45]} (20... Rad8 $1 $15) 21. Qg4 {[%emt 0:04:10] [#]} (21. Nc3 $11 {remains equal.}) 21... f5 $1 $17 {[%emt 0:05:06]} 22. Bxf4 {[%emt 0:00:31]} Qxf4 {[%emt 0:00:24]} (22... fxg4 $2 23. Bxc7 gxh3 24. g3 $18) 23. Qxf4 {[%emt 0:00:10]} Nxf4 {[%emt 0:00:04]} 24. Nd6 {[%emt 0:00:26] [#]} Rxe1+ {[%emt 0:03:54]} 25. Rxe1 {[%emt 0:00:12]} Nxg2 {[%emt 0:00:18]} 26. Re7 {[%emt 0:00:26]} g6 {[%emt 0:04:09]} 27. Nxb7 {[%emt 0:10:09]} Ra7 {[%emt 0:01:18]} 28. Bb3 {[%emt 0:04:08]} Bxb3 {[%emt 0:01:45]} 29. axb3 $15 {[%emt 0:00:16][%mdl 4096] Endgame KRN-KRN} Nh4 {[%emt 0:00:48]} 30. Re8+ {[%emt 0:05:23]} Kf7 {[%emt 0:02:16]} 31. Nd6+ {[%emt 0:07:52]} Kf6 {[%emt 0:00:05]} 32. Re3 {[%emt 0:00:09] Inhibits Nf3+.} Rd7 {[%emt 0:00:23]} 33. Nc4 {[%emt 0:00:07]} Rxd4 {[%emt 0:00:19]} 34. Nxa5 {[%emt 0:02:35]} (34. Kf1 $17 {was necessary.}) 34... Rd1+ {[%emt 0:00:05]} 35. Kh2 {[%emt 0:00:11]} Rd2 {[%emt 0:03:26]} (35... f4 $19 36. Rc3 Rf1) 36. Kg1 {[%emt 0:12:41]} Rd1+ {[%emt 0:00:05]} ({Stronger than} 36... Rxb2 37. Nxc6 Rb1+ 38. Kh2 $17) 37. Kh2 {[%emt 0:00:08]} c5 {[%emt 0:01:17]} 38. Nb7 {[%emt 0:02:31]} Rf1 {[%emt 0:01:18]} ({Better is} 38... f4 $17 39. Re4 Kf5) 39. Nxc5 $11 {[%emt 0:01:52] The position is equal.} f4 {[%emt 0:02:19]} 40. Nd7+ $1 {[%emt 0:02:38]} Kg5 {[%emt 0:00:40]} 41. Re5+ {[%emt 0:04:12]} Nf5 {[%emt 0:04:06]} 42. Kg2 {[%emt 0:00:23]} Rd1 {[%emt 0:00:40]} 43. Nc5 {[%emt 0:03:40]} Kf6 {[%emt 0:00:55]} 44. Re6+ {[%emt 0:04:52]} Kf7 {[%emt 0:00:38][%cal Of4f3] Threatens to win with ...f3+!} 45. Rb6 {[%emt 0:00:34]} Nh4+ {[%emt 0:00:35]} 46. Kh2 {[%emt 0:00:51]} h6 {[%emt 0:11:54]} 47. b4 {[%emt 0:03:25]} Nf3+ {[%emt 0:00:33]} 48. Kg2 {[%emt 0:00:12]} Nh4+ {[%emt 0:00:11]} 49. Kh2 {[%emt 0:00:06]} Nf3+ {[%emt 0:05:31]} 50. Kg2 {[%emt 0:00:13]} Nh4+ {[%emt 0:03:54] White happily takes the draw.  Weighted Error Value: White=0.12 (very precise) /Black=0.11 (very precise)} 1/2-1/2

[Event "Deutschland Grand Prix 2022"]
[Site "Dortmund"]
[Date "2022.07.23"]
[Round "6.1"]
[White "L'Ami, Erwin"]
[Black "Navara, David"]
[Result "1/2-1/2"]
[ECO "A34"]
[WhiteElo "2634"]
[BlackElo "2688"]
[Annotator "TA"]
[PlyCount "76"]
[EventDate "2022.07.17"]
[EventType "tourn"]
[EventCountry "GER"]
[SourceTitle "playchess.com"]
[Source "ChessBase"]
[SourceQuality "1"]
[TimeControl "40/5400+30:1800+30"]

{[%evp 14,76,2,-5,0,0,20,-8,8,-46,-6,-6,-13,-8,0,0,0,-3,0,0,-11,0,0,0,-1,-22,-37,-33,55,55,59,54,43,40,32,20,20,23,22,23,21,27,18,0,0,0,0,0,0,0,0,0,0,0,0,0,0,0,0,0,0,0,0,0,0]} 1. Nf3 {[%emt 0:00:05]} c5 {[%emt 0:01:19]} 2. c4 {[%emt 0:03:15]} Nc6 {[%emt 0:01:40]} 3. Nc3 {[%emt 0:00:28]} Nf6 {[%emt 0:00:06]} 4. g3 {[%emt 0:03:05]} d5 {[%emt 0:00:13]} 5. cxd5 {[%emt 0:00:47]} Nxd5 {[%emt 0:00:07]} 6. Bg2 {[%emt 0:00:11]} g6 {[%emt 0:02:41]} 7. d3 {[%emt 0:03:55]} Bg7 {[%emt 0:00:55]} 8. Bd2 {[%emt 0:00:10]} Nxc3 {[%emt 0:02:42] A34: Symmetrical English: 2 Nc3, lines with ...d5.} 9. Bxc3 {[%emt 0:00:26]} e5 {[%emt 0:01:28] [#]} 10. O-O $146 {[%emt 0:02:34]} ({Predecessor:} 10. Nd2 Bd7 11. Nc4 O-O 12. a4 b6 13. O-O Qe7 14. e3 Rfd8 15. Re1 Rac8 16. Qb3 {1-0 (62) Le,Q (2705)-Lupulescu,C (2622) Fujairah 2012}) 10... Be6 {[%emt 0:06:33] [#]} 11. a4 {[%emt 0:04:24]} (11. Nxe5 $1 $11 Nxe5 12. f4) 11... Bd5 {[%emt 0:03:43]} 12. Nd2 {[%emt 0:05:09]} Bxg2 {[%emt 0:02:22]} 13. Kxg2 {[%emt 0:00:06]} Qd5+ {[%emt 0:00:14]} 14. Kg1 {[%emt 0:02:05]} O-O {[%emt 0:03:40]} 15. Qb3 {[%emt 0:04:04]} Qxb3 {[%emt 0:03:00]} 16. Nxb3 {[%emt 0:05:32]} b6 {[%emt 0:00:10]} 17. a5 {[%emt 0:09:56]} Rfd8 {[%emt 0:06:55]} 18. Ra2 {[%emt 0:06:29]} e4 {[%emt 0:02:11]} 19. dxe4 {[%emt 0:12:21]} c4 $1 {[%emt 0:01:11]} 20. Nd2 {[%emt 0:00:50] [#] And now axb6 would win.} Bxc3 {[%emt 0:02:07]} (20... b5 $15) 21. bxc3 $14 {[%emt 0:00:06] Strongly threatening axb6.} Nxa5 {[%emt 0:00:11]} 22. Rb1 {[%emt 0:03:10] Inhibits Nb3.} Rd7 {[%emt 0:02:48]} 23. Rb4 {[%emt 0:01:25]} Rc8 {[%emt 0:01:12]} 24. f4 {[%emt 0:01:16]} f6 {[%emt 0:03:05]} 25. Kf2 {[%emt 0:02:07]} Rc5 {[%emt 0:03:20]} 26. h4 {[%emt 0:01:55]} h5 {[%emt 0:03:11]} 27. Ke3 {[%emt 0:02:11]} Kf7 {[%emt 0:01:47]} 28. Rb1 {[%emt 0:08:03] The position is equal.} Nb3 {[%emt 0:09:41]} 29. Nxb3 {[%emt 0:01:17]} cxb3 {[%emt 0:00:12]} 30. Rxb3 $11 {[%emt 0:00:04][%mdl 4096] Endgame KRR-KRR} Rc4 {[%emt 0:00:40] Inhibits Ra4.} 31. Rba3 {[%emt 0:01:28]} Re7 {[%emt 0:03:24]} 32. Rxa7 {[%emt 0:00:37]} Rcxe4+ {[%emt 0:00:07]} 33. Kf2 {[%emt 0:00:08]} Rxe2+ $1 {[%emt 0:00:07]} 34. Rxe2 {[%emt 0:00:04]} Rxa7 {[%emt 0:00:10]} 35. Rb2 {[%emt 0:00:06]} Ra3 {[%emt 0:00:35]} 36. Rxb6 {[%emt 0:00:06]} Rxc3 {[%emt 0:00:07]} 37. Kg2 {[%emt 0:00:05]} Rc2+ {[%emt 0:00:07]} 38. Kf3 {[%emt 0:00:05]} Rc3+ {[%emt 0:00:02] Weighted Error Value: White=0.07 (flawless) /Black=0.08 (flawless)} 1/2-1/2